bitfinex/quotes_BTCUSD_20251201
["timestamp","ask_amount","ask_price","bid_price","bid_amount"]
[1764575706348,0.25113058,86646.0,86643.0,0.24237312]
[1764575706586,0.001,86645.0,86643.0,0.24237312]
[1764575707351,0.001,86645.0,86643.0,0.2308313]
[1764575707936,0.24238361,86640.0,86636.0,0.24239322]
[1764575708381,0.23084342,86639.0,86636.0,0.24239322]
[1764575708585,0.23084635,86638.0,86636.0,0.24239322]
[1764575708803,0.24238361,86640.0,86637.0,0.01154241]
[1764575709267,0.24237188,86644.0,86638.0,0.01154227]
[1764575709550,0.23083524,86642.0,86640.0,0.01154201]
[1764575709745,0.23083524,86642.0,86638.0,0.24238774]
[1764575709746,0.23083759,86641.0,86638.0,0.24238774]
[1764575710120,0.23084407,86639.0,86637.0,0.23084821]
[1764575710278,0.01154201,86640.0,86633.0,0.02343294]
[1764575710480,0.01154201,86640.0,86628.0,0.23819086]
[1764575710481,0.01154254,86636.0,86630.0,0.23086619]
[1764575710701,0.01154254,86636.0,86629.0,0.01154347]
[1764575710702,0.01154294,86633.0,86629.0,0.01154347]
[1764575710899,0.23086164,86632.0,86629.0,0.24241053]
[1764575711110,0.24239625,86635.0,86629.0,0.24241053]
[1764575711300,0.24239625,86635.0,86631.0,0.24240718]
[1764575711736,0.24239625,86635.0,86632.0,0.23085925]
[1764575712078,0.24239625,86635.0,86633.0,0.23085761]
[1764575712772,0.24239292,86637.0,86633.0,0.23085761]
[1764575712773,0.01154241,86637.0,86633.0,0.01154294]
[1764575712982,0.01154241,86637.0,86635.0,0.23085306]
[1764575713212,0.23085126,86636.0,86634.0,0.01154281]
[1764575713412,0.01154187,86641.0,86634.0,0.24239639]
[1764575713624,0.24238243,86640.0,86637.0,0.24239048]
[1764575713814,0.24237617,86643.0,86640.0,0.23084008]
[1764575714018,0.23083878,86641.0,86639.0,0.01154214]
[1764575714192,0.24237723,86642.0,86639.0,0.24238361]
[1764575714396,0.24237704,86642.0,86640.0,0.23083943]
[1764575714919,0.24237617,86643.0,86641.0,0.23083747]
[1764575715078,0.23083492,86642.0,86639.0,0.24238498]
[1764575715281,0.24237617,86643.0,86640.0,0.23083957]
[1764575715492,0.23958641,86646.0,86643.0,0.23083157]
[1764575715910,0.01154148,86644.0,86640.0,0.24238167]
[1764575716231,0.25114441,86640.0,86636.0,0.2308498]
[1764575716386,0.25114441,86640.0,86636.0,0.23084988]
[1764575716590,0.25114441,86640.0,86636.0,0.24239242]
[1764575717599,0.2308436,86639.0,86637.0,0.23084769]
[1764575717799,0.23083915,86641.0,86638.0,0.23084309]
[1764575718216,0.01154161,86643.0,86640.0,0.23083991]
[1764575718382,0.01154161,86643.0,86638.0,0.01154227]
[1764575718383,0.01154174,86642.0,86638.0,0.24238582]
[1764575718582,0.24237667,86642.0,86639.0,0.230842]
[1764575718819,0.24237667,86642.0,86640.0,0.23083954]
[1764575719037,0.24237863,86643.0,86640.0,0.24238155]
[1764575719362,0.24237863,86643.0,86641.0,0.23083707]
[1764575719538,0.01154174,86642.0,86639.0,0.01154214]
[1764575719701,0.24237777,86642.0,86639.0,0.2423831]
[1764575719884,0.24237431,86643.0,86640.0,0.24238155]
[1764575720522,0.24237313,86644.0,86641.0,0.23083759]
[1764575720719,0.33176,86646.0,86641.0,0.24237946]
[1764575720918,0.23081665,86649.0,86646.0,0.24236076]
[1764575721729,0.55381562,86650.0,86647.0,0.24236077]
[1764575722109,0.24232956,86659.0,86649.0,0.03954081]
[1764575722310,0.24232956,86659.0,86658.0,0.028]
[1764575722311,0.02494355,86659.0,86658.0,0.028]
[1764575722552,0.23076934,86667.0,86662.0,0.23078088]
[1764575722757,0.23077144,86666.0,86663.0,0.01183]
[1764575722933,0.23077369,86665.0,86663.0,0.01183]
[1764575723114,0.01153894,86663.0,86659.0,0.01153948]
[1764575723320,0.01154001,86655.0,86647.0,0.23081903]
[1764575723633,0.323,86650.0,86647.0,8.156e-05]
[1764575723837,0.23081894,86648.0,86647.0,8.156e-05]
[1764575724034,0.24234138,86655.0,86647.0,8.156e-05]
[1764575724232,0.01153974,86657.0,86654.0,0.01617]
[1764575724552,0.23079856,86656.0,86654.0,0.01617]
[1764575724749,0.23079856,86656.0,86653.0,0.01183]
[1764575725065,0.01153961,86658.0,86655.0,0.01617]
[1764575725206,0.23079498,86657.0,86655.0,0.01617]
[1764575725654,0.01153988,86656.0,86653.0,0.01183]
[1764575725830,0.23080296,86654.0,86653.0,0.01183]
[1764575726154,0.23080284,86655.0,86653.0,0.01183]
[1764575726960,0.23080296,86654.0,86653.0,0.01183]
[1764575727985,0.2308124,86651.0,86648.0,0.01154094]
[1764575728188,0.2308124,86651.0,86639.0,0.23084158]
[1764575728189,0.23081894,86648.0,86647.0,8.156e-05]
[1764575728567,0.23957894,86648.0,86647.0,8.156e-05]
[1764575729286,0.23081894,86648.0,86647.0,0.00108156]
[1764575730054,0.23957894,86648.0,86647.0,0.00108156]
[1764575730558,0.24833894,86648.0,86647.0,8.156e-05]
[1764575730774,0.23957894,86648.0,86647.0,8.156e-05]
[1764575731372,0.01154054,86651.0,86647.0,8.156e-05]
[1764575731571,0.23081894,86648.0,86647.0,8.156e-05]
[1764575733627,0.2423551,86650.0,86647.0,8.156e-05]
[1764575733772,0.23081894,86648.0,86647.0,8.156e-05]
[1764575735021,0.01154054,86651.0,86647.0,8.156e-05]
[1764575735174,0.23081894,86648.0,86647.0,8.156e-05]
[1764575735377,0.23957894,86648.0,86647.0,8.156e-05]
[1764575735600,0.67003281,86648.0,86647.0,8.156e-05]
[1764575736923,0.69494776,86648.0,86647.0,8.156e-05]
[1764575738038,0.69594776,86648.0,86647.0,8.156e-05]
[1764575738604,0.58849389,86648.0,86647.0,8.156e-05]
[1764575739606,0.56357894,86648.0,86647.0,8.156e-05]
[1764575741543,0.324,86648.0,86647.0,8.156e-05]
[1764575741989,0.001,86648.0,86647.0,0.23090316]
[1764575742331,0.001,86648.0,86647.0,0.24707316]
[1764575742744,0.001,86648.0,86647.0,0.27072316]
[1764575742944,0.001,86648.0,86647.0,0.36314834]
[1764575743392,0.63412431,86660.0,86658.0,0.23078992]
[1764575743695,0.323,86667.0,86664.0,0.24231264]
[1764575743926,0.23076834,86667.0,86662.0,0.2584903]
[1764575744206,0.01153828,86668.0,86662.0,0.25849022]
[1764575744207,0.23077654,86664.0,86662.0,0.25849022]
[1764575744375,0.01153868,86665.0,86662.0,0.25849022]
[1764575744570,0.01153855,86666.0,86663.0,0.2307778]
[1764575744811,0.24230996,86666.0,86663.0,0.24231674]
[1764575745038,0.003,86667.0,86666.0,0.230771]
[1764575745230,0.23074104,86678.0,86676.0,0.23074192]
[1764575745231,0.00876,86678.0,86676.0,0.23074192]
[1764575745388,0.00876,86678.0,86675.0,0.01153735]
[1764575745592,0.00876,86678.0,86676.0,0.23074358]
[1764575746003,0.00876,86678.0,86675.0,0.242283]
[1764575746198,0.00876,86678.0,86676.0,0.23074417]
[1764575746398,0.01015277,86678.0,86675.0,0.01153735]
[1764575746923,0.00139277,86678.0,86677.0,0.24716171]
[1764575747128,0.00539277,86678.0,86677.0,0.24716171]
[1764575747561,0.00139277,86678.0,86677.0,0.24716171]
[1764575747761,0.00439277,86678.0,86677.0,0.24716171]
[1764575748090,0.00139277,86678.0,86677.0,0.24716171]
[1764575748287,0.00539277,86678.0,86677.0,0.24716171]
[1764575748540,0.00439277,86678.0,86677.0,0.24716171]
[1764575748700,0.00439277,86678.0,86677.0,0.23074171]
[1764575748902,0.00539277,86678.0,86677.0,0.23074171]
[1764575749560,0.00539277,86678.0,86674.0,0.25436514]
[1764575749764,0.00539277,86678.0,86670.0,0.24283802]
[1764575749765,0.01153708,86677.0,86670.0,0.01208]
[1764575749928,0.01153761,86673.0,86669.0,0.23076266]
[1764575750299,0.24228704,86675.0,86671.0,0.23075739]
[1764575750430,0.01153708,86677.0,86672.0,0.24229178]
[1764575750768,0.00039277,86678.0,86675.0,0.01153735]
[1764575751134,0.00039277,86678.0,86677.0,0.23074171]
[1764575751362,0.00139277,86678.0,86677.0,0.23074171]
[1764575751736,0.00039277,86678.0,86673.0,0.24228926]
[1764575751937,0.01153721,86676.0,86671.0,0.01186]
[1764575752149,0.00876,86674.0,86671.0,0.01153788]
[1764575752482,0.01153721,86676.0,86673.0,0.23075236]
[1764575752685,0.01153721,86676.0,86674.0,0.23074903]
[1764575752922,0.01153708,86677.0,86675.0,0.23074657]
[1764575753134,0.01192972,86678.0,86676.0,0.23074419]
[1764575753451,0.01592972,86678.0,86676.0,0.23074419]
[1764575753652,0.01192972,86678.0,86675.0,0.24228392]
[1764575753885,0.01192972,86678.0,86676.0,0.23074399]
[1764575754090,0.004,86677.0,86676.0,0.23074399]
[1764575754291,0.01153708,86677.0,86672.0,0.01153775]
[1764575754492,0.01153708,86677.0,86673.0,0.01153761]
[1764575754652,0.23074691,86676.0,86674.0,0.23074899]
[1764575755059,0.01153708,86677.0,86674.0,0.23074899]
[1764575755254,0.01292972,86678.0,86676.0,0.230743]
[1764575755456,0.00139277,86678.0,86677.0,0.23074171]
[1764575756004,0.00039277,86678.0,86677.0,0.27215171]
[1764575756169,0.00039277,86678.0,86677.0,0.26815171]
[1764575756368,0.00039277,86678.0,86677.0,0.26715171]
[1764575756800,0.00439277,86678.0,86677.0,0.26715171]
[1764575758195,0.00539277,86678.0,86677.0,0.26715171]
[1764575761208,0.00539277,86678.0,86677.0,0.24216171]
[1764575761412,0.00539277,86678.0,86677.0,0.27447171]
[1764575761597,0.00439277,86678.0,86677.0,0.27447171]
[1764575761800,0.00439277,86678.0,86677.0,0.01742]
[1764575762004,0.24389182,86678.0,86677.0,0.001]
[1764575762255,0.2714643,86678.0,86677.0,0.001]
[1764575762410,0.2714643,86678.0,86672.0,0.01153775]
[1764575762411,0.24227959,86677.0,86673.0,0.01153761]
[1764575762607,0.24227959,86677.0,86673.0,0.24228864]
[1764575762824,0.23074582,86676.0,86673.0,0.24228864]
[1764575763916,0.23074582,86676.0,86673.0,0.24428864]
[1764575764545,0.00039277,86678.0,86675.0,0.25870439]
[1764575764742,0.00039277,86678.0,86677.0,0.01642]
[1764575765150,0.00039277,86678.0,86677.0,0.23074171]
[1764575765574,0.23113409,86678.0,86673.0,0.01153761]
[1764575765773,0.2307426,86677.0,86675.0,0.23074692]
[1764575765971,0.24228225,86676.0,86671.0,0.01153788]
[1764575766204,0.01192972,86678.0,86671.0,0.01153788]
[1764575766205,0.00039277,86678.0,86675.0,0.23074704]
[1764575766466,0.00039277,86678.0,86675.0,0.23074456]
[1764575766671,0.00039277,86678.0,86677.0,0.23074171]
[1764575767579,0.00039277,86678.0,86675.0,0.01153735]
[1764575768723,0.11409568,86678.0,86677.0,0.23074171]
[1764575769673,0.11409568,86678.0,86676.0,0.23074357]
[1764575769674,0.00039277,86678.0,86676.0,0.23074357]
[1764575769973,0.00039277,86678.0,86677.0,0.002]
[1764575770222,0.00039277,86678.0,86677.0,0.23274171]
[1764575770719,0.00039277,86678.0,86677.0,0.23074171]
[1764575770921,0.00039277,86678.0,86676.0,0.23074357]
[1764575771275,0.00039277,86678.0,86677.0,0.23074171]
[1764575771674,0.00039277,86678.0,86677.0,0.24716171]
[1764575771910,0.00039277,86678.0,86677.0,0.27215171]
[1764575772554,0.00039277,86678.0,86677.0,0.37389689]
[1764575773618,0.00039277,86678.0,86677.0,0.37189689]
[1764575773875,0.00039277,86678.0,86677.0,0.09242518]
[1764575774080,0.23113182,86678.0,86677.0,0.001]
[1764575774480,0.23113182,86678.0,86675.0,0.34202729]
[1764575775077,0.00039277,86678.0,86677.0,0.004]
[1764575775281,0.00039277,86678.0,86675.0,0.34202729]
[1764575775648,0.01192972,86678.0,86675.0,0.002]
[1764575775832,0.23074913,86675.0,86669.0,0.01153815]
[1764575776038,0.23074913,86675.0,86670.0,0.00732]
[1764575776439,0.23074913,86675.0,86672.0,0.2307534]
[1764575777012,0.24228648,86675.0,86672.0,0.2307534]
[1764575777185,0.24228648,86675.0,86671.0,0.24228783]
[1764575777368,0.23075085,86674.0,86671.0,0.24228783]
[1764575777769,0.06123745,86678.0,86674.0,0.01153748]
[1764575777993,0.28701449,86677.0,86674.0,0.01153748]
[1764575778196,0.23074358,86677.0,86674.0,0.242285]
[1764575778515,0.29198168,86678.0,86676.0,0.23074226]
[1764575778516,0.0497005,86678.0,86676.0,0.23074226]
[1764575778657,0.00039277,86678.0,86677.0,0.01518]
[1764575779101,0.23113269,86678.0,86675.0,0.24228439]
[1764575779537,0.23074715,86675.0,86670.0,0.23808033]
[1764575779709,0.23074715,86675.0,86672.0,0.24229154]
[1764575780237,0.01153761,86673.0,86668.0,0.01153828]
[1764575780537,0.23075851,86671.0,86668.0,0.01153828]
[1764575780685,0.2510636,86669.0,86665.0,0.24963234]
[1764575780888,0.2510636,86669.0,86666.0,0.24230744]
[1764575781123,0.02029815,86669.0,86666.0,0.24230744]
[1764575781308,0.25106143,86669.0,86665.0,0.24963202]
[1764575781504,0.25106143,86669.0,86665.0,0.24231202]
[1764575781689,0.01153868,86665.0,86659.0,0.24261873]
[1764575781911,0.01153868,86665.0,86661.0,0.33474623]
[1764575782125,0.24231451,86665.0,86661.0,0.33474623]
[1764575782486,0.23075585,86672.0,86664.0,0.02671881]
[1764575782690,0.24230117,86669.0,86665.0,0.01918]
[1764575782937,0.24230642,86668.0,86665.0,0.01518]
[1764575783167,0.01153828,86668.0,86665.0,0.01618]
[1764575783371,0.01153828,86668.0,86665.0,0.24695314]
[1764575783541,0.24230414,86668.0,86665.0,0.01618]
[1764575783750,0.24230414,86668.0,86665.0,0.24695309]
[1764575784094,0.64529009,86674.0,86670.0,0.01153801]
[1764575784095,0.01153748,86674.0,86670.0,0.01153801]
[1764575784254,0.01153681,86679.0,86674.0,0.24228635]
[1764575784417,0.24227326,86679.0,86675.0,0.24228415]
[1764575784619,0.25102721,86682.0,86677.0,0.01518]
[1764575784929,0.01153655,86681.0,86677.0,0.24592171]
[1764575785321,0.24224591,86689.0,86677.0,0.26943171]
[1764575785523,0.34792597,86689.0,86677.0,0.26943171]
[1764575785723,0.63375261,86690.0,86677.0,0.26943171]
[1764575786037,0.63375261,86690.0,86677.0,0.27043171]
[1764575786235,0.01153455,86696.0,86677.0,0.27043171]
[1764575786590,0.00876,86699.0,86677.0,0.27043171]
[1764575786591,0.04521403,86699.0,86677.0,0.27043171]
[1764575786788,0.02029415,86699.0,86677.0,0.27043171]
[1764575786927,0.01153442,86697.0,86677.0,0.27043171]
[1764575787129,0.01153455,86696.0,86677.0,0.27043171]
[1764575787337,0.01153482,86694.0,86677.0,0.27043171]
[1764575787785,0.63375261,86690.0,86677.0,0.27875171]
[1764575788084,0.63375261,86690.0,86677.0,0.27775171]
[1764575788284,0.63375261,86690.0,86677.0,0.28275171]
[1764575788465,0.63375261,86690.0,86677.0,0.27775171]
[1764575788646,0.24222665,86696.0,86677.0,0.27775171]
[1764575788834,0.24222665,86696.0,86677.0,0.28275171]
[1764575789053,0.24222665,86696.0,86677.0,0.28175171]
[1764575789552,0.24222665,86696.0,86677.0,0.27543171]
[1764575789753,0.63375261,86690.0,86677.0,0.28275171]
[1764575789935,0.63375261,86690.0,86677.0,0.28175171]
[1764575790136,0.63375261,86690.0,86677.0,0.28275171]
[1764575790537,0.01153455,86696.0,86677.0,0.28275171]
[1764575790769,0.00025343,86698.0,86677.0,0.28275171]
[1764575800062,0.63375261,86690.0,86677.0,0.27543171]
[1764575800435,0.63375261,86690.0,86677.0,0.28275171]
[1764575801988,0.00025343,86698.0,86677.0,0.28275171]
[1764575802201,0.01178772,86698.0,86677.0,0.28275171]
[1764575802902,0.00025343,86698.0,86677.0,0.28275171]
[1764575803101,0.01153482,86694.0,86677.0,0.28275171]
[1764575803341,0.24222765,86696.0,86677.0,0.28275171]
[1764575803556,0.63375261,86690.0,86677.0,0.28275171]
[1764575806048,0.00025343,86698.0,86677.0,0.28275171]
[1764575812811,0.62439881,86700.0,86699.0,0.23068316]
[1764575813014,5.888e-05,86700.0,86699.0,0.23068316]
[1764575813879,5.888e-05,86700.0,86697.0,0.01153442]
[1764575814054,5.888e-05,86700.0,86698.0,0.23068361]
[1764575814668,5.888e-05,86700.0,86699.0,0.23068316]
[1764575815652,5.888e-05,86700.0,86697.0,0.24222093]
[1764575815852,0.23074149,86700.0,86697.0,0.24222093]
[1764575816327,5.888e-05,86700.0,86698.0,0.23068562]
[1764575816725,0.23074018,86700.0,86697.0,0.24222093]
[1764575816882,0.23074018,86700.0,86698.0,0.23068561]
[1764575817459,0.23074018,86700.0,86698.0,0.23268538]
[1764575817654,5.888e-05,86700.0,86699.0,0.23068316]
[1764575817880,5.888e-05,86700.0,86699.0,0.24650316]
[1764575819113,5.888e-05,86700.0,86699.0,0.23068316]
[1764575819331,0.23068316,86699.0,86696.0,0.25390462]
[1764575819642,0.01153455,86696.0,86689.0,0.01153548]
[1764575819784,0.23069385,86695.0,86691.0,0.23070241]
[1764575819981,0.23069794,86694.0,86691.0,0.23070241]
[1764575820954,0.23069794,86694.0,86692.0,0.23070117]
[1764575821564,0.23069794,86694.0,86688.0,0.01153562]
[1764575821565,0.24225577,86686.0,86676.0,0.11724518]
[1764575821766,0.23073862,86679.0,86672.0,0.23075248]
[1764575821992,0.00876,86678.0,86675.0,0.09242518]
[1764575822175,0.63375261,86682.0,86679.0,0.01153681]
[1764575822595,0.24226566,86682.0,86679.0,0.01153681]
[1764575822741,0.24226306,86683.0,86679.0,0.24227234]
[1764575823243,0.24227248,86680.0,86676.0,0.03635721]
[1764575823443,0.01153668,86680.0,86679.0,0.001]
[1764575823848,0.24227045,86680.0,86679.0,0.005]
[1764575824220,0.24227045,86680.0,86679.0,0.001]
[1764575824353,0.24226492,86682.0,86678.0,0.24227459]
[1764575824558,0.23073428,86680.0,86677.0,0.01153708]
[1764575824788,0.23073428,86680.0,86677.0,0.24227641]
[1764575825005,0.24227096,86680.0,86677.0,0.2422781]
[1764575825205,0.23073662,86679.0,86677.0,0.2422781]
[1764575825415,0.23073662,86679.0,86676.0,0.24628021]
[1764575825786,0.23073662,86679.0,86676.0,0.24228021]
[1764575826149,0.23073662,86679.0,86677.0,0.23474143]
[1764575826271,0.23073662,86679.0,86677.0,0.23174143]
[1764575826838,0.00876,86684.0,86679.0,0.01153681]
[1764575827024,0.01153642,86682.0,86679.0,0.01153681]
[1764575827193,0.23073786,86679.0,86677.0,0.005]
[1764575827398,0.23073905,86678.0,86677.0,0.005]
[1764575828433,0.23073905,86678.0,86676.0,0.23174379]
[1764575828595,0.01153708,86677.0,86671.0,0.23075607]
[1764575828796,0.24228398,86677.0,86673.0,0.24243217]
[1764575829004,0.01153721,86676.0,86672.0,0.24228753]
[1764575829205,0.24228648,86675.0,86672.0,0.24228753]
[1764575829738,0.2307497,86674.0,86673.0,0.001]
[1764575829889,0.2307497,86674.0,86673.0,0.006]
[1764575830085,0.01153801,86670.0,86666.0,0.24230746]
[1764575830311,0.01153695,86678.0,86666.0,0.01153855]
[1764575830535,0.23075218,86674.0,86672.0,0.006]
[1764575831324,0.23081104,86674.0,86672.0,0.006]
[1764575831705,5.886e-05,86674.0,86673.0,0.23075236]
[1764575831908,5.886e-05,86674.0,86673.0,0.26225236]
[1764575832228,5.886e-05,86674.0,86673.0,0.25825236]
[1764575832409,5.886e-05,86674.0,86673.0,0.28307236]
[1764575833610,5.886e-05,86674.0,86673.0,0.28707236]
[1764575835394,5.886e-05,86674.0,86673.0,0.004]
[1764575835571,0.57132856,86674.0,86673.0,0.004]
[1764575836332,0.24231996,86663.0,86658.0,0.25401095]
[1764575836587,0.24231996,86663.0,86659.0,0.24232667]
[1764575837164,0.24231996,86663.0,86660.0,0.23078669]
[1764575837499,0.24231996,86663.0,86660.0,0.23078633]
[1764575837661,0.24231996,86663.0,86661.0,0.23078417]
[1764575838279,0.24231996,86663.0,86660.0,0.24232567]
[1764575838505,0.24231996,86663.0,86659.0,0.01153948]
[1764575838704,0.24230626,86668.0,86664.0,0.23077558]
[1764575838920,0.01153841,86667.0,86663.0,0.24231563]
[1764575839282,0.23077103,86666.0,86664.0,0.2307763]
[1764575839666,0.24230856,86667.0,86664.0,0.2307763]
[1764575839882,0.23078165,86662.0,86661.0,0.09242518]
[1764575840004,0.01153988,86656.0,86650.0,0.01205]
[1764575840208,0.01154094,86648.0,86639.0,0.24252047]
[1764575840412,0.01154174,86642.0,86638.0,0.01154227]
[1764575840690,0.23083488,86643.0,86638.0,0.09242518]
[1764575840963,0.24237416,86643.0,86639.0,0.01154214]
[1764575841265,0.24237138,86644.0,86639.0,0.24238452]
[1764575841614,0.24238304,86640.0,86635.0,0.24239618]
[1764575842252,0.24238304,86640.0,86636.0,0.23085034]
[1764575842460,0.01154161,86643.0,86639.0,0.23084292]
[1764575842662,0.01154161,86643.0,86637.0,0.09242518]
[1764575842821,0.2423828,86640.0,86636.0,0.01154254]
[1764575843020,0.24237666,86642.0,86638.0,0.01154227]
[1764575843429,0.24243058,86644.0,86639.0,0.01154214]
[1764575843624,0.01154174,86642.0,86637.0,0.09242518]
[1764575843825,0.24238153,86641.0,86637.0,0.33481513]
[1764575844140,0.01154187,86641.0,86638.0,0.24238783]
[1764575844366,0.24237961,86641.0,86638.0,0.24238783]
[1764575844979,0.24237961,86641.0,86638.0,0.24538783]
[1764575845126,0.23084101,86640.0,86638.0,0.003]
[1764575845332,0.23084101,86640.0,86637.0,0.09242518]
[1764575845532,0.24237961,86641.0,86638.0,0.23384458]
[1764575845770,0.0116003,86644.0,86638.0,0.01454227]
[1764575845975,0.0116003,86644.0,86640.0,0.23083922]
[1764575846196,5.882e-05,86644.0,86643.0,0.01625]
[1764575846391,5.882e-05,86644.0,86643.0,0.24708226]
[1764575846565,5.882e-05,86644.0,86643.0,0.27137226]
[1764575847193,5.882e-05,86644.0,86642.0,0.23083482]
[1764575847800,5.882e-05,86644.0,86643.0,0.27097226]
[1764575848227,5.882e-05,86644.0,86643.0,0.27397226]
[1764575848424,5.882e-05,86644.0,86643.0,0.24722226]
[1764575849330,5.882e-05,86644.0,86643.0,0.25022226]
[1764575850676,5.882e-05,86644.0,86643.0,0.27397226]
[1764575851038,5.882e-05,86644.0,86643.0,0.003]
[1764575851679,0.23088842,86644.0,86643.0,0.003]
[1764575851989,0.23964842,86644.0,86643.0,0.003]
[1764575852418,0.23088842,86644.0,86643.0,0.003]
[1764575852624,0.2424299,86644.0,86641.0,0.02398187]
[1764575852977,0.2424299,86644.0,86643.0,0.002]
[1764575854586,0.23083492,86642.0,86641.0,0.01244]
[1764575855054,0.23083492,86642.0,86641.0,0.01444]
[1764575855283,0.2424299,86644.0,86641.0,0.01244]
[1764575855486,0.0116003,86644.0,86641.0,0.01244]
[1764575855688,0.24238885,86638.0,86634.0,0.24239795]
[1764575855896,0.24238511,86639.0,86634.0,0.24239795]
[1764575856067,0.24238511,86639.0,86628.0,0.24241338]
[1764575856068,0.01154254,86636.0,86628.0,0.24241338]
[1764575856281,0.24239075,86637.0,86631.0,0.24240606]
[1764575856485,0.24240134,86634.0,86629.0,0.00267305]
[1764575856636,0.01154307,86632.0,86629.0,0.00267305]
[1764575857078,0.24239918,86634.0,86629.0,0.01421652]
[1764575857253,0.24239918,86634.0,86630.0,0.23086543]
[1764575857254,0.23085896,86633.0,86630.0,0.23086543]
[1764575857470,0.24239918,86634.0,86630.0,0.23086543]
[1764575857979,0.24239918,86634.0,86631.0,0.23086365]
[1764575858160,0.24239918,86634.0,86631.0,0.23186365]
[1764575858745,0.23085939,86633.0,86630.0,0.24240962]
[1764575858952,0.23085939,86633.0,86630.0,0.24440962]
[1764575859385,0.01154281,86634.0,86630.0,0.24240962]
[1764575859588,0.24237979,86641.0,86633.0,0.04037294]
[1764575859788,0.86473105,86643.0,86638.0,0.23084535]
[1764575860018,0.23083569,86642.0,86638.0,0.23084535]
[1764575860301,0.23083569,86642.0,86639.0,0.23084257]
[1764575860821,5.882e-05,86644.0,86638.0,0.24238519]
[1764575861023,0.24242999,86644.0,86640.0,0.01154201]
[1764575861169,0.24242999,86644.0,86641.0,0.2308367]
[1764575861365,0.0116003,86644.0,86641.0,0.24237857]
[1764575861572,5.882e-05,86644.0,86642.0,0.2308325]
[1764575861771,5.882e-05,86644.0,86643.0,0.23083226]
[1764575862476,5.882e-05,86644.0,86641.0,0.01244]
[1764575862679,0.0116003,86644.0,86641.0,0.02398187]
[1764575862910,0.0116003,86644.0,86642.0,0.23083487]
[1764575863065,0.0116003,86644.0,86633.0,0.24240185]
[1764575863066,0.02030174,86642.0,86633.0,0.24240185]
[1764575863270,0.64544023,86643.0,86635.0,0.10396785]
[1764575863437,0.2308467,86638.0,86635.0,0.09242518]
[1764575863641,0.01154227,86638.0,86635.0,0.32327793]
[1764575863876,0.23083778,86641.0,86638.0,0.01154227]
[1764575864074,0.01154201,86640.0,86638.0,0.04014]
[1764575864492,0.24238226,86640.0,86639.0,0.01639]
[1764575864725,0.24238226,86640.0,86639.0,0.04014]
[1764575865062,0.24237682,86642.0,86639.0,0.01639]
[1764575865271,0.01154174,86642.0,86639.0,0.01639]
[1764575865469,0.23083791,86641.0,86639.0,0.01639]
[1764575865670,0.24237906,86642.0,86639.0,0.01639]
[1764575865878,0.24237906,86642.0,86639.0,0.25877391]
[1764575866514,0.24237906,86642.0,86639.0,0.01639]
[1764575867145,0.24237906,86642.0,86639.0,0.24723261]
[1764575867518,0.23083828,86641.0,86639.0,0.01639]
[1764575868348,0.23083828,86641.0,86637.0,0.24238983]
[1764575868349,0.23084043,86640.0,86637.0,0.24238983]
[1764575868611,0.01154187,86641.0,86636.0,0.01154254]
[1764575868810,0.23084587,86638.0,86636.0,0.01154254]
[1764575868952,0.01154214,86639.0,86636.0,0.01154254]
[1764575869452,0.24238529,86639.0,86636.0,0.24239136]
[1764575869878,0.24238229,86640.0,86637.0,0.23084602]
[1764575870081,0.0116003,86644.0,86637.0,0.01154241]
[1764575870438,0.01154161,86643.0,86639.0,0.24747154]
[1764575870641,0.23083596,86642.0,86640.0,0.23083998]
[1764575871018,5.882e-05,86644.0,86642.0,0.23083492]
[1764575871360,0.0116003,86644.0,86643.0,0.01663]
[1764575871926,0.2424302,86644.0,86643.0,0.01663]
[1764575872544,0.23083492,86642.0,86641.0,0.01186]
[1764575872756,0.2424302,86644.0,86641.0,0.03437]
[1764575872912,0.23083254,86643.0,86641.0,0.03437]
[1764575873114,0.23083254,86643.0,86642.0,0.02251]
[1764575873316,0.23083254,86643.0,86642.0,0.03914]
[1764575873729,0.23083254,86643.0,86642.0,0.01663]
[1764575875052,0.23083492,86642.0,86641.0,0.01186]
[1764575875385,5.882e-05,86644.0,86642.0,0.26997297]
[1764575875608,5.882e-05,86644.0,86643.0,0.24746226]
[1764575875749,5.882e-05,86644.0,86643.0,0.26997226]
[1764575877526,5.882e-05,86644.0,86643.0,0.27397226]
[1764575879678,5.882e-05,86644.0,86643.0,0.27097226]
[1764575879875,5.882e-05,86644.0,86643.0,0.27497226]
[1764575880243,5.882e-05,86644.0,86643.0,0.67497226]
[1764575880628,5.882e-05,86644.0,86643.0,0.27497226]
[1764575885767,5.882e-05,86644.0,86643.0,0.59797226]
[1764575886635,5.882e-05,86644.0,86643.0,0.59397226]
[1764575886921,5.882e-05,86644.0,86643.0,0.59997226]
[1764575887145,5.882e-05,86644.0,86643.0,0.59897226]
[1764575887269,5.882e-05,86644.0,86643.0,0.59297226]
[1764575887474,5.882e-05,86644.0,86643.0,0.60197226]
[1764575887679,5.882e-05,86644.0,86643.0,1.00197226]
[1764575887995,5.882e-05,86644.0,86643.0,1.00097226]
[1764575888219,5.882e-05,86644.0,86643.0,1.00197226]
[1764575890169,0.2510365,86678.0,86643.0,1.00197226]
[1764575890170,0.01153548,86689.0,86682.0,0.01153642]
[1764575890301,0.323,86688.0,86685.0,0.24225644]
[1764575890506,0.01153575,86687.0,86682.0,0.01186]
[1764575890691,0.01153655,86681.0,86677.0,0.01153708]
[1764575890893,0.00876,86678.0,86665.0,0.01153868]
[1764575891135,0.63389862,86677.0,86676.0,0.23074438]
[1764575891292,0.23072863,86682.0,86677.0,0.01153708]
[1764575891488,0.23073117,86681.0,86678.0,0.24227366]
[1764575891689,0.24226505,86682.0,86678.0,0.24227366]
[1764575892273,0.24226505,86682.0,86679.0,0.23073634]
[1764575894231,0.24226845,86681.0,86678.0,0.24227381]
[1764575894444,0.24226845,86681.0,86678.0,0.23073884]
[1764575895133,0.23072076,86685.0,86679.0,0.01153681]
[1764575895333,0.23072076,86685.0,86681.0,0.23072843]
[1764575895578,0.23072076,86685.0,86682.0,0.23072616]
[1764575895737,0.01153588,86686.0,86682.0,0.23072616]
[1764575895975,0.32305888,86689.0,86688.0,0.23071244]
[1764575896194,0.56530638,86689.0,86685.0,0.24225424]
[1764575896375,0.01153562,86688.0,86684.0,0.24225887]
[1764575896612,0.23071608,86687.0,86684.0,0.24225887]
[1764575896815,0.2307188,86686.0,86684.0,0.01153615]
[1764575897033,0.23948042,86685.0,86675.0,0.2307446]
[1764575897231,0.05108197,86686.0,86675.0,0.01153735]
[1764575897437,0.24226092,86684.0,86679.0,0.01153681]
[1764575897635,0.24226092,86684.0,86679.0,0.24227136]
[1764575897854,0.8762044,86689.0,86681.0,0.24226495]
[1764575898058,0.23071786,86686.0,86683.0,0.02367628]
[1764575898261,0.23072278,86685.0,86683.0,0.01214]
[1764575898606,0.01153588,86686.0,86682.0,0.01153642]
[1764575898774,0.2307212,86685.0,86683.0,0.23072567]
[1764575899141,0.01153588,86686.0,86683.0,0.23072567]
[1764575899762,0.24225451,86686.0,86683.0,0.23072567]
[1764575899982,0.01153602,86685.0,86679.0,0.01153681]